[Event "*** SCC Grand Prix: Titled Tuesday Blitz"]
[Site "Chess.com"]
[Date "2020.08.11"]
[Round "9"]
[White "Chuchofrio1"]
[Black "Roaccutane"]
[Result "0-1"]
[WhiteElo "2276"]
[BlackElo "2556"]
[TimeControl "180+1"]
[EndTime "11:46:59 PDT"]
[Termination "Roaccutane won on time"]

1. d4 {[%clk 0:03:00.9]} 1... Nf6 {[%clk 0:02:59.6]} 2. c4 {[%clk 0:03:01]} 2...
c5 {[%clk 0:03:00.5]} 3. d5 {[%clk 0:03:00.5]} 3... b5 {[%clk 0:03:00.9]} 4.
cxb5 {[%clk 0:03:00]} 4... a6 {[%clk 0:03:01.4]} 5. bxa6 {[%clk 0:02:56.7]} 5...
g6 {[%clk 0:03:01.4]} 6. Nc3 {[%clk 0:02:56.8]} 6... Bxa6 {[%clk 0:03:01.9]} 7.
g3 {[%clk 0:02:56.9]} 7... Bg7 {[%clk 0:03:01.4]} 8. Bg2 {[%clk 0:02:56.6]} 8...
d6 {[%clk 0:03:01.9]} 9. Nf3 {[%clk 0:02:55.5]} 9... O-O {[%clk 0:03:02.1]} 10.
O-O {[%clk 0:02:55.2]} 10... Nbd7 {[%clk 0:03:02.6]} 11. Rb1 {[%clk 0:02:55.2]}
11... Qa5 {[%clk 0:03:03.1]} 12. Bd2 {[%clk 0:02:55]} 12... Rfb8 {[%clk
0:03:03.2]} 13. Qc2 {[%clk 0:02:55]} 13... Qd8 {[%clk 0:02:58.3]} 14. b3 {[%clk
0:02:54.4]} 14... Ne8 {[%clk 0:02:57.1]} 15. a4 {[%clk 0:02:53.8]} 15... Nc7
{[%clk 0:02:57.1]} 16. Rfe1 {[%clk 0:02:52.5]} 16... Bxc3 {[%clk 0:02:50.4]} 17.
Bxc3 {[%clk 0:02:47.3]} 17... Nxd5 {[%clk 0:02:50.6]} 18. Ba1 {[%clk 0:02:37.9]}
18... Nb4 {[%clk 0:02:42.9]} 19. Qc3 {[%clk 0:02:34.3]} 19... f6 {[%clk
0:02:43.1]} 20. Ng5 {[%clk 0:02:31.8]} 20... Bb7 {[%clk 0:02:36.1]} 21. Ne6
{[%clk 0:02:30.4]} 21... Qc8 {[%clk 0:02:30.5]} 22. Qe3 {[%clk 0:02:25.4]} 22...
Ne5 {[%clk 0:02:26.9]} 23. Bh3 {[%clk 0:02:09.2]} 23... f5 {[%clk 0:02:14.5]}
24. Nf4 {[%clk 0:01:49.5]} 24... Nc2 {[%clk 0:02:13.6]} 25. Qc3 {[%clk
0:01:39.8]} 25... Nxe1 {[%clk 0:02:09.3]} 26. Rxe1 {[%clk 0:01:32.6]} 26... Qc6
{[%clk 0:02:00.5]} 27. Bg2 {[%clk 0:01:30.7]} 27... Qe8 {[%clk 0:01:59.3]} 28.
Nd3 {[%clk 0:01:27.1]} 28... Bxg2 {[%clk 0:01:59.4]} 29. Kxg2 {[%clk 0:01:19.7]}
29... Qc6+ {[%clk 0:01:56.2]} 30. Kg1 {[%clk 0:01:16.6]} 30... Qd5 {[%clk
0:01:50.3]} 31. Rb1 {[%clk 0:01:01]} 31... Rxa4 {[%clk 0:01:47]} 32. f4 {[%clk
0:00:57.3]} 32... Rxa1 {[%clk 0:01:43.1]} 33. Rxa1 {[%clk 0:00:54.6]} 33... Nxd3
{[%clk 0:01:41]} 34. exd3 {[%clk 0:00:50.9]} 34... Rxb3 {[%clk 0:01:41]} 35.
Ra8+ {[%clk 0:00:50.1]} 35... Kf7 {[%clk 0:01:33.8]} 36. Qh8 {[%clk 0:00:42]}
36... Qd4+ {[%clk 0:01:34]} 37. Qxd4 {[%clk 0:00:42]} 37... cxd4 {[%clk
0:01:33.9]} 38. Rh8 {[%clk 0:00:41.9]} 38... h5 {[%clk 0:01:32.7]} 39. Rh7+
{[%clk 0:00:41.6]} 39... Kf6 {[%clk 0:01:33]} 40. Rh8 {[%clk 0:00:41.3]} 40...
Rxd3 {[%clk 0:01:33]} 41. Rf8+ {[%clk 0:00:41.2]} 41... Kg7 {[%clk 0:01:33.2]}
42. Re8 {[%clk 0:00:41]} 42... Kf7 {[%clk 0:01:33.7]} 43. Rh8 {[%clk 0:00:41]}
43... e5 {[%clk 0:01:33.6]} 44. Rh7+ {[%clk 0:00:40.9]} 44... Kf6 {[%clk
0:01:33.3]} 45. Rh8 {[%clk 0:00:39.6]} 45... e4 {[%clk 0:01:33]} 46. Rd8 {[%clk
0:00:38.5]} 46... Ke7 {[%clk 0:01:32.8]} 47. Rb8 {[%clk 0:00:37.9]} 47... e3
{[%clk 0:01:32.1]} 48. Rb7+ {[%clk 0:00:37.7]} 48... Ke6 {[%clk 0:01:32]} 49.
Rb8 {[%clk 0:00:37.8]} 49... Rd2 {[%clk 0:01:30.5]} 50. Re8+ {[%clk 0:00:37.5]}
50... Kd5 {[%clk 0:01:30.8]} 51. Re7 {[%clk 0:00:36.4]} 51... Kc4 {[%clk
0:01:25.5]} 52. Rc7+ {[%clk 0:00:35.6]} 52... Kd3 {[%clk 0:01:25.3]} 53. Ra7
{[%clk 0:00:34.8]} 53... Ke4 {[%clk 0:01:25.3]} 54. Re7+ {[%clk 0:00:34.4]}
54... Kf3 {[%clk 0:01:25.6]} 55. h4 {[%clk 0:00:30.1]} 55... Rg2+ {[%clk
0:01:25.1]} 56. Kh1 {[%clk 0:00:30]} 56... Rxg3 {[%clk 0:01:23.1]} 57. Kh2
{[%clk 0:00:29.1]} 57... Rg4 {[%clk 0:01:22.4]} 58. Kh3 {[%clk 0:00:28.5]} 58...
Rxf4 {[%clk 0:01:21.5]} 59. Ra7 {[%clk 0:00:25.7]} 59... Rxh4+ {[%clk
0:01:19.6]} 60. Kxh4 {[%clk 0:00:25.1]} 60... d3 {[%clk 0:01:20.5]} 61. Kh3
{[%clk 0:00:20.6]} 61... d2 {[%clk 0:01:20.1]} 62. Ra1 {[%clk 0:00:21.3]} 62...
e2 {[%clk 0:01:19.2]} 63. Ra3+ {[%clk 0:00:21.5]} 63... Kf2 {[%clk 0:01:19.1]}
64. Rg3 {[%clk 0:00:20.1]} 64... f4 {[%clk 0:01:14.8]} 65. Rg2+ {[%clk 0:00:20]}
65... Ke3 {[%clk 0:01:14.9]} 66. Rh2 {[%clk 0:00:18.5]} 66... d5 {[%clk
0:01:14]} 67. Rg2 {[%clk 0:00:18.4]} 67... d4 {[%clk 0:01:13.7]} 68. Rh2 {[%clk
0:00:18.2]} 68... g5 {[%clk 0:01:13.1]} 69. Rg2 {[%clk 0:00:18.1]} 69... g4+
{[%clk 0:01:12.3]} 70. Kh2 {[%clk 0:00:18.2]} 70... f3 {[%clk 0:01:11]} 71. Rg3
{[%clk 0:00:17.2]} 71... d3 {[%clk 0:01:07.9]} 72. Rg1 {[%clk 0:00:16.3]} 72...
Kf4 {[%clk 0:01:07.7]} 73. Rg3 {[%clk 0:00:16.2]} 73... h4 {[%clk 0:01:06.9]}
74. Rg1 {[%clk 0:00:15.5]} 74... f2 {[%clk 0:01:06.2]} 75. Rf1 {[%clk
0:00:13.9]} 75... g3+ {[%clk 0:01:01.3]} 76. Kg2 {[%clk 0:00:12.5]} 76... h3+
{[%clk 0:00:58.4]} 77. Kxh3 {[%clk 0:00:10.7]} 77... Kf3 {[%clk 0:00:58.2]} 78.
Rd1 {[%clk 0:00:07.8]} 78... exd1=Q {[%clk 0:00:53.6]} 79. Kh4 {[%clk
0:00:06.3]} 79... g2 {[%clk 0:00:54]} 80. Kh5 {[%clk 0:00:06]} 80... Qe1 {[%clk
0:00:54.1]} 0-1

[Event "*** SCC Grand Prix: Titled Tuesday Blitz"]
[Site "Chess.com"]
[Date "2020.08.11"]
[Round "9"]
[White "serena-maria"]
[Black "Babas"]
[Result "0-1"]
[WhiteElo "2284"]
[BlackElo "2451"]
[TimeControl "180+1"]
[EndTime "11:47:04 PDT"]
[Termination "Babas won by checkmate"]

1. Nf3 {[%clk 0:02:59]} 1... d5 {[%clk 0:02:59.6]} 2. g3 {[%clk 0:02:57.6]} 2...
Nf6 {[%clk 0:02:59.6]} 3. Bg2 {[%clk 0:02:57.5]} 3... Bf5 {[%clk 0:02:59.4]} 4.
O-O {[%clk 0:02:57.4]} 4... e6 {[%clk 0:02:59.5]} 5. c4 {[%clk 0:02:57.7]} 5...
c6 {[%clk 0:02:59.8]} 6. cxd5 {[%clk 0:02:57.4]} 6... cxd5 {[%clk 0:02:56.9]} 7.
Qb3 {[%clk 0:02:56.8]} 7... Qb6 {[%clk 0:02:52]} 8. Qxb6 {[%clk 0:02:57.1]} 8...
axb6 {[%clk 0:02:52.9]} 9. d3 {[%clk 0:02:57.8]} 9... Nc6 {[%clk 0:02:46.1]} 10.
Nc3 {[%clk 0:02:56.4]} 10... Be7 {[%clk 0:02:46.2]} 11. Bf4 {[%clk 0:02:55.2]}
11... O-O {[%clk 0:02:45.8]} 12. a3 {[%clk 0:02:54.8]} 12... Rfc8 {[%clk
0:02:43.5]} 13. Nb5 {[%clk 0:02:51.5]} 13... Ne8 {[%clk 0:02:34.5]} 14. b4
{[%clk 0:02:49.6]} 14... h6 {[%clk 0:02:30.2]} 15. h4 {[%clk 0:02:47.3]} 15...
Bg4 {[%clk 0:02:16.8]} 16. Rfc1 {[%clk 0:02:45.3]} 16... f6 {[%clk 0:02:06.8]}
17. Be3 {[%clk 0:02:42]} 17... Ra6 {[%clk 0:01:56.6]} 18. Nc3 {[%clk 0:01:59.3]}
18... Ne5 {[%clk 0:01:15.3]} 19. Nh2 {[%clk 0:01:14.9]} 19... Bh5 {[%clk
0:01:09.7]} 20. Kf1 {[%clk 0:01:07.5]} 20... g5 {[%clk 0:00:59.5]} 21. hxg5
{[%clk 0:01:05.1]} 21... hxg5 {[%clk 0:01:00.4]} 22. Nb5 {[%clk 0:01:04.9]}
22... Rc6 {[%clk 0:00:47.9]} 23. f4 {[%clk 0:00:40.6]} 23... gxf4 {[%clk
0:00:45.5]} 24. gxf4 {[%clk 0:00:40.4]} 24... Nd7 {[%clk 0:00:40.1]} 25. f5
{[%clk 0:00:37.7]} 25... Bf7 {[%clk 0:00:37.6]} 26. Ng4 {[%clk 0:00:27.8]} 26...
Bf8 {[%clk 0:00:32.8]} 27. Bd4 {[%clk 0:00:15.1]} 27... e5 {[%clk 0:00:32.6]}
28. Be3 {[%clk 0:00:15.1]} 28... Nd6 {[%clk 0:00:32.4]} 29. Nc7 {[%clk
0:00:13.6]} 29... Rxc1+ {[%clk 0:00:30.8]} 30. Bxc1 {[%clk 0:00:13.4]} 30... Ra4
{[%clk 0:00:27]} 31. Ne6 {[%clk 0:00:13.2]} 31... d4 {[%clk 0:00:22.4]} 32. Bh6
{[%clk 0:00:06.6]} 32... Be7 {[%clk 0:00:13.3]} 33. Be4 {[%clk 0:00:02.7]} 33...
Bxe6 {[%clk 0:00:12.6]} 34. fxe6 {[%clk 0:00:02.7]} 34... Nf8 {[%clk 0:00:13.2]}
35. Bd5 {[%clk 0:00:02.7]} 35... Ng6 {[%clk 0:00:12.1]} 36. Bd2 {[%clk 0:00:02]}
36... Ra8 {[%clk 0:00:12.1]} 37. Bb3 {[%clk 0:00:02.4]} 37... Rc8 {[%clk
0:00:12.3]} 38. Kg2 {[%clk 0:00:02.9]} 38... Nb5 {[%clk 0:00:12.3]} 39. Nf2
{[%clk 0:00:03.2]} 39... Nc3 {[%clk 0:00:12.8]} 40. Ne4 {[%clk 0:00:01.9]} 40...
Nxe2 {[%clk 0:00:12.2]} 41. Kf3 {[%clk 0:00:01.8]} 41... Nef4 {[%clk 0:00:12.7]}
42. Bxf4 {[%clk 0:00:01.8]} 42... Nxf4 {[%clk 0:00:13.6]} 43. Rg1+ {[%clk
0:00:01.9]} 43... Kf8 {[%clk 0:00:13]} 44. Ng3 {[%clk 0:00:02.4]} 44... Nxd3
{[%clk 0:00:13.1]} 45. Nf5 {[%clk 0:00:02.5]} 45... Nf4 {[%clk 0:00:12.9]} 46.
Nxe7 {[%clk 0:00:02.4]} 46... Kxe7 {[%clk 0:00:13.3]} 47. Rg7+ {[%clk
0:00:03.1]} 47... Kd6 {[%clk 0:00:13.8]} 48. Rd7+ {[%clk 0:00:03]} 48... Kc6
{[%clk 0:00:13.6]} 49. Ba4+ {[%clk 0:00:03.2]} 49... b5 {[%clk 0:00:13.6]} 50.
Bc2 {[%clk 0:00:03.5]} 50... Nxe6 {[%clk 0:00:13.3]} 51. Re7 {[%clk 0:00:03]}
51... Kd6 {[%clk 0:00:12.7]} 52. Rf7 {[%clk 0:00:03.5]} 52... Rf8 {[%clk
0:00:12.8]} 53. Rxf8 {[%clk 0:00:03.7]} 53... Nxf8 {[%clk 0:00:13]} 54. Be4
{[%clk 0:00:04.4]} 54... b6 {[%clk 0:00:12.5]} 55. Bf5 {[%clk 0:00:04.3]} 55...
Ne6 {[%clk 0:00:12.7]} 56. Ke4 {[%clk 0:00:05]} 56... Ng5+ {[%clk 0:00:12.8]}
57. Kd3 {[%clk 0:00:05.6]} 57... Kd5 {[%clk 0:00:13.4]} 58. Bd7 {[%clk
0:00:05.5]} 58... e4+ {[%clk 0:00:13.8]} 59. Kd2 {[%clk 0:00:06.1]} 59... f5
{[%clk 0:00:11.6]} 60. a4 {[%clk 0:00:06.6]} 60... bxa4 {[%clk 0:00:11.6]} 61.
Bxa4 {[%clk 0:00:07.4]} 61... f4 {[%clk 0:00:12.1]} 62. b5 {[%clk 0:00:07.2]}
62... f3 {[%clk 0:00:12.4]} 63. Ke1 {[%clk 0:00:06.8]} 63... e3 {[%clk
0:00:12.6]} 64. Bb3+ {[%clk 0:00:07.2]} 64... Ke4 {[%clk 0:00:13]} 65. Bg8
{[%clk 0:00:06.1]} 65... d3 {[%clk 0:00:12.9]} 66. Kf1 {[%clk 0:00:05.6]} 66...
e2+ {[%clk 0:00:12.7]} 67. Ke1 {[%clk 0:00:05.7]} 67... Ke3 {[%clk 0:00:12.8]}
68. Be6 {[%clk 0:00:03.9]} 68... d2# {[%clk 0:00:13.2]} 0-1

[Event "*** SCC Grand Prix: Titled Tuesday Blitz"]
[Site "Chess.com"]
[Date "2020.08.11"]
[Round "9"]
[White "SergeyKarjakin"]
[Black "sergiochess83"]
[Result "0-1"]
[WhiteElo "2970"]
[BlackElo "2841"]
[TimeControl "180+1"]
[EndTime "11:47:06 PDT"]
[Termination "sergiochess83 won on time"]

1. e4 {[%clk 0:03:00.9]} 1... c6 {[%clk 0:02:59.1]} 2. d4 {[%clk 0:02:59.7]}
2... d5 {[%clk 0:02:58.7]} 3. e5 {[%clk 0:03:00.3]} 3... Bf5 {[%clk 0:02:57.7]}
4. Nf3 {[%clk 0:03:00.8]} 4... e6 {[%clk 0:02:58.1]} 5. Be2 {[%clk 0:03:01.5]}
5... Ne7 {[%clk 0:02:54.5]} 6. c3 {[%clk 0:03:01.8]} 6... Bg6 {[%clk 0:02:42.2]}
7. O-O {[%clk 0:02:58.5]} 7... Nd7 {[%clk 0:02:39.9]} 8. Nh4 {[%clk 0:02:41.1]}
8... c5 {[%clk 0:02:35.7]} 9. Nd2 {[%clk 0:02:38.2]} 9... Nc6 {[%clk 0:02:31.4]}
10. Nxg6 {[%clk 0:02:37.1]} 10... hxg6 {[%clk 0:02:32.3]} 11. Nf3 {[%clk
0:02:37.1]} 11... Be7 {[%clk 0:02:29.1]} 12. g3 {[%clk 0:02:34.4]} 12... g5
{[%clk 0:02:26.1]} 13. Be3 {[%clk 0:02:27]} 13... Qb6 {[%clk 0:01:14.1]} 14. Rb1
{[%clk 0:02:24]} 14... cxd4 {[%clk 0:01:05.1]} 15. cxd4 {[%clk 0:02:23.5]} 15...
f6 {[%clk 0:01:01.2]} 16. b4 {[%clk 0:02:02.1]} 16... O-O-O {[%clk 0:01:00]} 17.
b5 {[%clk 0:01:53.3]} 17... Na5 {[%clk 0:00:59.3]} 18. Qa4 {[%clk 0:01:53.1]}
18... Kb8 {[%clk 0:00:55.3]} 19. Bd2 {[%clk 0:01:49.3]} 19... Nc4 {[%clk
0:00:48.2]} 20. Bxc4 {[%clk 0:01:49.3]} 20... dxc4 {[%clk 0:00:48.7]} 21. Ba5
{[%clk 0:01:48.8]} 21... g4 {[%clk 0:00:47.6]} 22. exf6 {[%clk 0:01:20.2]} 22...
Bxf6 {[%clk 0:00:45.8]} 23. Bxb6 {[%clk 0:01:17]} 23... Nxb6 {[%clk 0:00:46.7]}
24. Qd1 {[%clk 0:01:16.9]} 24... gxf3 {[%clk 0:00:47.3]} 25. Qxf3 {[%clk
0:01:17.8]} 25... Bxd4 {[%clk 0:00:46.9]} 26. Kg2 {[%clk 0:01:10.9]} 26... e5
{[%clk 0:00:47]} 27. Qe4 {[%clk 0:01:08.8]} 27... c3 {[%clk 0:00:44.3]} 28. Rbc1
{[%clk 0:01:05.5]} 28... Nd5 {[%clk 0:00:42.2]} 29. Rfd1 {[%clk 0:01:02.5]}
29... Rhf8 {[%clk 0:00:40.2]} 30. Rc2 {[%clk 0:00:51.5]} 30... Rf6 {[%clk
0:00:36.5]} 31. h4 {[%clk 0:00:44.1]} 31... Rfd6 {[%clk 0:00:33.7]} 32. a4
{[%clk 0:00:36.5]} 32... b6 {[%clk 0:00:28.8]} 33. h5 {[%clk 0:00:33.9]} 33...
Rf6 {[%clk 0:00:28.9]} 34. Ra2 {[%clk 0:00:24.9]} 34... Nb4 {[%clk 0:00:26.5]}
35. Re2 {[%clk 0:00:24.8]} 35... Rfd6 {[%clk 0:00:23.4]} 36. Qh7 {[%clk
0:00:17.4]} 36... R6d7 {[%clk 0:00:19.2]} 37. h6 {[%clk 0:00:14.3]} 37... gxh6
{[%clk 0:00:18.6]} 38. Qxh6 {[%clk 0:00:15.2]} 38... c2 {[%clk 0:00:14.5]} 39.
Rc1 {[%clk 0:00:15.2]} 39... Rc7 {[%clk 0:00:15]} 40. Qd2 {[%clk 0:00:14.2]}
40... Rc3 {[%clk 0:00:09.8]} 41. Rxe5 {[%clk 0:00:12.3]} 41... Nd3 {[%clk
0:00:08.7]} 42. Re4 {[%clk 0:00:08.8]} 42... Nxc1 {[%clk 0:00:07.6]} 43. Rxd4
{[%clk 0:00:08.8]} 43... Rxd4 {[%clk 0:00:07.3]} 44. Qxc3 {[%clk 0:00:07.4]}
44... Nd3 {[%clk 0:00:06.3]} 45. Qxd4 {[%clk 0:00:06.2]} 45... Ne1+ {[%clk
0:00:05.7]} 46. Kf1 {[%clk 0:00:06.2]} 46... c1=Q {[%clk 0:00:06.6]} 47. Qe5+
{[%clk 0:00:05.9]} 47... Kb7 {[%clk 0:00:06.4]} 48. Qxe1 {[%clk 0:00:04.2]}
48... Qc4+ {[%clk 0:00:06.5]} 49. Kg2 {[%clk 0:00:04.3]} 49... Qxa4 {[%clk
0:00:07.4]} 50. Qe7+ {[%clk 0:00:04.2]} 50... Kb8 {[%clk 0:00:07.2]} 51. Qd6+
{[%clk 0:00:04.3]} 51... Kb7 {[%clk 0:00:07.2]} 52. Qd5+ {[%clk 0:00:04.2]}
52... Kc7 {[%clk 0:00:06.8]} 53. f4 {[%clk 0:00:02.8]} 53... Qc2+ {[%clk
0:00:05]} 54. Kh3 {[%clk 0:00:02.3]} 54... Qh7+ {[%clk 0:00:04.9]} 55. Kg4
{[%clk 0:00:02.7]} 55... Qg7+ {[%clk 0:00:05.3]} 56. Kf3 {[%clk 0:00:02.4]}
56... Qc3+ {[%clk 0:00:05.5]} 57. Kg2 {[%clk 0:00:02.6]} 57... Qc2+ {[%clk
0:00:05.4]} 58. Kh3 {[%clk 0:00:03.3]} 58... Qh7+ {[%clk 0:00:05.6]} 59. Kg4
{[%clk 0:00:03.9]} 59... Qg7+ {[%clk 0:00:06.1]} 60. Qg5 {[%clk 0:00:04.4]}
60... Qd7+ {[%clk 0:00:06.3]} 61. Qf5 {[%clk 0:00:04.6]} 61... Qd1+ {[%clk
0:00:06.5]} 62. Kg5 {[%clk 0:00:04.3]} 62... Qd8+ {[%clk 0:00:06]} 63. Kh6
{[%clk 0:00:04.4]} 63... Qh8+ {[%clk 0:00:04.3]} 0-1

[Event "*** SCC Grand Prix: Titled Tuesday Blitz"]
[Site "Chess.com"]
[Date "2020.08.11"]
[Round "9"]
[White "Gusarov91"]
[Black "TimofeevAr"]
[Result "0-1"]
[WhiteElo "2658"]
[BlackElo "2843"]
[TimeControl "180+1"]
[EndTime "11:47:06 PDT"]
[Termination "TimofeevAr won by checkmate"]

1. d4 {[%clk 0:03:00.9]} 1... Nf6 {[%clk 0:02:59.5]} 2. Nf3 {[%clk 0:03:01.3]}
2... g6 {[%clk 0:02:59.6]} 3. c4 {[%clk 0:03:01.9]} 3... Bg7 {[%clk 0:02:59.7]}
4. g3 {[%clk 0:03:02.5]} 4... d5 {[%clk 0:02:59.3]} 5. Bg2 {[%clk 0:03:01.3]}
5... dxc4 {[%clk 0:02:59.2]} 6. Na3 {[%clk 0:03:01.4]} 6... O-O {[%clk
0:02:58.5]} 7. O-O {[%clk 0:03:00.8]} 7... c6 {[%clk 0:02:58.1]} 8. Nxc4 {[%clk
0:03:01]} 8... Be6 {[%clk 0:02:58.7]} 9. Nce5 {[%clk 0:03:00.3]} 9... Bd5 {[%clk
0:02:58.9]} 10. b3 {[%clk 0:02:55.3]} 10... a5 {[%clk 0:02:58.6]} 11. Bf4 {[%clk
0:02:40.9]} 11... a4 {[%clk 0:02:52.3]} 12. Qc2 {[%clk 0:02:37.7]} 12... Qa5
{[%clk 0:02:49.5]} 13. Nc4 {[%clk 0:02:27.6]} 13... axb3 {[%clk 0:02:45.5]} 14.
axb3 {[%clk 0:02:20.4]} 14... Qxa1 {[%clk 0:02:44.7]} 15. Rxa1 {[%clk
0:02:20.5]} 15... Rxa1+ {[%clk 0:02:44.4]} 16. Bc1 {[%clk 0:02:16.1]} 16... Be4
{[%clk 0:02:42.5]} 17. Qb2 {[%clk 0:02:07]} 17... Ra6 {[%clk 0:02:41.1]} 18.
Nfe5 {[%clk 0:02:03]} 18... Bxg2 {[%clk 0:02:39.8]} 19. Kxg2 {[%clk 0:02:03.4]}
19... Nbd7 {[%clk 0:02:40.1]} 20. Nd3 {[%clk 0:02:00]} 20... Ne4 {[%clk
0:02:30.5]} 21. f3 {[%clk 0:01:57.5]} 21... Nd6 {[%clk 0:02:29.7]} 22. Nxd6
{[%clk 0:01:51.4]} 22... exd6 {[%clk 0:02:29.6]} 23. Bf4 {[%clk 0:01:42.5]}
23... c5 {[%clk 0:02:29.3]} 24. Be3 {[%clk 0:01:33.3]} 24... Rfa8 {[%clk
0:02:26.2]} 25. Qc3 {[%clk 0:01:30.1]} 25... b5 {[%clk 0:02:08.7]} 26. Nf4
{[%clk 0:01:26.1]} 26... Ra3 {[%clk 0:01:35.5]} 27. Qc2 {[%clk 0:00:52]} 27...
Ra2 {[%clk 0:01:27.6]} 28. Qd3 {[%clk 0:00:49.5]} 28... cxd4 {[%clk 0:01:08.1]}
29. Bxd4 {[%clk 0:00:49.4]} 29... Nc5 {[%clk 0:01:08.5]} 30. Bxc5 {[%clk
0:00:46.1]} 30... dxc5 {[%clk 0:01:08.8]} 31. Qxb5 {[%clk 0:00:46.8]} 31... Be5
{[%clk 0:01:02.1]} 32. Nd5 {[%clk 0:00:44]} 32... Rd8 {[%clk 0:00:58.2]} 33. Qc4
{[%clk 0:00:39.5]} 33... Bd4 {[%clk 0:00:50.8]} 34. Kh3 {[%clk 0:00:33.8]} 34...
Re8 {[%clk 0:00:42.5]} 35. e3 {[%clk 0:00:34.1]} 35... Bg7 {[%clk 0:00:39.8]}
36. Qxc5 {[%clk 0:00:33.9]} 36... h5 {[%clk 0:00:38.9]} 37. f4 {[%clk
0:00:33.1]} 37... Rd2 {[%clk 0:00:34.3]} 38. Ne7+ {[%clk 0:00:32.5]} 38... Kh7
{[%clk 0:00:32]} 39. Nd5 {[%clk 0:00:19]} 39... Ra8 {[%clk 0:00:29.8]} 40. Nb4
{[%clk 0:00:13.3]} 40... Bf8 {[%clk 0:00:20.7]} 41. Qc6 {[%clk 0:00:13.9]} 41...
Rad8 {[%clk 0:00:19]} 42. Nc2 {[%clk 0:00:09.5]} 42... Bg7 {[%clk 0:00:16.4]}
43. g4 {[%clk 0:00:09.5]} 43... hxg4+ {[%clk 0:00:15.7]} 44. Kxg4 {[%clk
0:00:10.1]} 44... Rxh2 {[%clk 0:00:16.3]} 45. f5 {[%clk 0:00:10.6]} 45... Rdd2
{[%clk 0:00:14.7]} 46. fxg6+ {[%clk 0:00:10.6]} 46... fxg6 {[%clk 0:00:15.1]}
47. Nb4 {[%clk 0:00:09.5]} 47... Rdg2+ {[%clk 0:00:13.5]} 48. Kf3 {[%clk
0:00:09.5]} 48... Rf2+ {[%clk 0:00:13.6]} 49. Ke4 {[%clk 0:00:09.2]} 49... Rh4+
{[%clk 0:00:13.4]} 50. Kd3 {[%clk 0:00:09.7]} 50... Rxb4 {[%clk 0:00:13.3]} 51.
Qe6 {[%clk 0:00:10.3]} 51... Rh2 {[%clk 0:00:12.2]} 52. e4 {[%clk 0:00:09.5]}
52... Rb5 {[%clk 0:00:10.3]} 53. Kc4 {[%clk 0:00:08.4]} 53... Re5 {[%clk
0:00:09.9]} 54. Qg4 {[%clk 0:00:08.2]} 54... Rhh5 {[%clk 0:00:09.6]} 55. b4
{[%clk 0:00:08]} 55... Bf6 {[%clk 0:00:09.9]} 56. Qd7+ {[%clk 0:00:07]} 56...
Kh6 {[%clk 0:00:09.6]} 57. Qd2+ {[%clk 0:00:07]} 57... Bg5 {[%clk 0:00:09.1]}
58. Qg2 {[%clk 0:00:07]} 58... Bf6 {[%clk 0:00:08.2]} 59. Qd2+ {[%clk
0:00:06.4]} 59... Kg7 {[%clk 0:00:08.5]} 60. Qd7+ {[%clk 0:00:05.3]} 60... Re7
{[%clk 0:00:08.8]} 61. Qd3 {[%clk 0:00:05.9]} 61... Rhe5 {[%clk 0:00:08.4]} 62.
b5 {[%clk 0:00:04.7]} 62... Rxe4+ {[%clk 0:00:08.8]} 63. Kc5 {[%clk 0:00:05.3]}
63... R4e5+ {[%clk 0:00:08.7]} 64. Kc6 {[%clk 0:00:05.8]} 64... R5e6+ {[%clk
0:00:08.8]} 65. Kc5 {[%clk 0:00:06]} 65... Rc7+ {[%clk 0:00:08.7]} 66. Kb4
{[%clk 0:00:06.4]} 66... Be7+ {[%clk 0:00:09]} 67. Ka5 {[%clk 0:00:06.6]} 67...
Ra7# {[%clk 0:00:08.5]} 0-1